Workbook

Sheet Лист1
A1: Школа | C1: МБОУ "Паньшинская СШ им. Гули Королевой" | F1: Утвердил: | G1: должность | H1: Директор ООО "ДонАппетит"
A2: Типовое примерное меню приготавливаемых блюд | G2: фамилия | H2: Лукашевич Е.Н.
A3: Возрастная категория | E3: 7-11 лет | G3: дата | H3: 12 | I3: 1 | J3: 2026
H4: день | I4: месяц | J4: год
A5: Неделя | B5: День недели | C5: Прием пищи | D5: Раздел меню | E5: Блюда | F5: Вес блюда, г | G5: Белки | H5: Жиры | I5: Углеводы | J5: Калорийность | K5: № рецептуры | L5: Цена
A6: 1 | B6: 1 | C6: Завтрак | D6: гор.блюдо | E6: Каша вязкая молочная рисовая | F6: 200 | G6: 5.6 | H6: 10.6 | I6: 40.7 | J6: 275 | K6: 174
E7: Блинчики с джемом в.асс | F7: 120 | G7: 9.3 | H7: 10.9 | I7: 47.8 | J7: 326.7 | K7: 338
D8: гор.напиток | E8: Чай с сахаром | F8: 200/15 | G8: 0.2 | H8: 0 | I8: 15 | J8: 60.5 | K8: 685
D9: хлеб | E9: пшеничный | F9: 40 | G9: 3 | H9: 0.2 | I9: 19.5 | J9: 91.9 | K9: ТТК №6
D13: итого | F13: 575 | G13: =SUM(G6:G12) -> 18.1 | H13: 21.7 | I13: =SUM(I6:I12) -> 123 | J13: =SUM(J6:J12) -> 754.1 | L13: =SUM(L6:L12) -> 0
A14: =A6 -> 1 | B14: =B6 -> 1 | C14: Полдник | D14: закуска | E14: Яблоки печеные №372 | F14: 100 | G14: 0.4 | H14: 0.4 | I14: 24.9 | J14: 107.6 | K14: 372
D15: напиток | E15: Сок фруктовый №707 | F15: 200 | G15: 1.1 | H15: 0.2 | I15: 19.5 | J15: 83.4 | K15: 707
D16: итого | F16: =SUM(F14:F15) -> 300 | G16: =SUM(G14:G15) -> 1.5 | H16: =SUM(H14:H15) -> 0.6 | I16: =SUM(I14:I15) -> 44.4 | J16: =SUM(J14:J15) -> 191 | L16: =SUM(L15:L15) -> 0
A17: =A6 -> 1 | B17: =B6 -> 1 | C17: Итого за день: | F17: =F13+F16 -> 875 | G17: =G13+G16 -> 19.6 | H17: =H13+H16 -> 22.3 | I17: =I13+I16 -> 167.4 | J17: =J13+J16 -> 945.1 | L17: =L13+L16 -> 0
A18: 1 | B18: 2 | C18: Завтрак | D18: гор.блюдо | E18: Каша из пшена и риса дружба молочная №294 | F18: 200 | G18: 5.6 | H18: 10.6 | I18: 40.7 | J18: 223 | K18: 175
D19: гор.блюдо | E19: Омлет натуральный | F19: 120 | G19: 8.3 | H19: 9.3 | I19: 12.6 | J19: 97.5 | K19: 144
D20: гор.напиток | E20: Чай с сахаром и лимоном | F20: 200/15/5 | G20: 0.3 | H20: 0 | I20: 15.2 | J20: 60 | K20: 377
D21: хлеб | E21: Хлеб пшеничный | F21: 40 | G21: 3 | H21: 0.2 | I21: 19.5 | J21: 91.9 | K21: ТТК №6 | L21: 105.71
D22: фрукты
D25: итого | F25: 500 | G25: =SUM(G18:G24) -> 17.2 | H25: =SUM(H18:H24) -> 20.1 | I25: =SUM(I18:I24) -> 88 | J25: =SUM(J18:J24) -> 472.4 | L25: =SUM(L19:L24) -> 105.71
A26: =A18 -> 1 | B26: =B18 -> 2 | C26: Полдник | D26: закуска | E26: Фрукты свежие(яблоко) | F26: 120 | G26: 0.4 | H26: 0.4 | I26: 9.5 | J26: 45.6 | K26: 338
D27: 1 блюдо | E27: Чай с сахаром каркаде | F27: 180 | G27: 0.2 | H27: 0 | I27: 13.5 | J27: 54.4 | K27: 685
D28: итого | F28: =SUM(F26:F27) -> 300 | G28: =SUM(G26:G27) -> 0.6 | H28: =SUM(H26:H27) -> 0.4 | I28: =SUM(I26:I27) -> 23 | J28: =SUM(J26:J27) -> 100 | L28: =SUM(L26:L27) -> 0
A29: =A18 -> 1 | B29: =B18 -> 2 | C29: Итого за день: | F29: =F25+F28 -> 800 | G29: =G25+G28 -> 17.8 | H29: =H25+H28 -> 20.5 | I29: =I25+I28 -> 111 | J29: =J25+J28 -> 572.4 | L29: =L25+L28 -> 105.71
A30: 1 | B30: 3 | C30: Завтрак | D30: гор.блюдо | E30: Фрикадельки по-калининградски | F30: 50 | G30: 5.2 | H30: 5.3 | I30: 4.3 | J30: 89.9
D31: гор.блюдо | E31: Гречка по-купечески | F31: 200 | G31: 21.9 | H31: 25.3 | I31: 40.1 | J31: 425 | K31: ТТК№468
D32: гор.напиток | E32: Чай черный с яблоком | F32: 200 | G32: 0.3 | H32: 0.1 | I32: 10.2 | J32: 43 | K32: 547
D33: хлеб | E33: Хлеб пшеничный | F33: 40 | G33: 3 | H33: 0.2 | I33: 19.5 | J33: 91.9 | K33: ТТК №6 | L33: 105.71
D34: офощи | E34: Овощи по сезону (огурец свежий, помидор свежий, капуста квашеная, помидор соленый, огурец соленый, свекла отварная) | F34: 60 | G34: 0.5 | H34: 0.1 | I34: 0.1 | J34: 7.6 | K34: ТТК №1,2,3,4,5
D37: итого | F37: 550 | G37: =SUM(G30:G36) -> 30.9 | H37: =SUM(H30:H36) -> 31 | I37: =SUM(I30:I36) -> 74.2 | J37: =SUM(J30:J36) -> 657.4 | L37: =SUM(L30:L36) -> 105.71
A38: =A30 -> 1 | B38: =B30 -> 3 | C38: Полдник | D38: закуска | E38: Фрукты свежие(яблоко) | F38: 120 | G38: 0.5 | H38: 0.5 | I38: 11.4 | J38: 54.7 | K38: 338
D39: 1 блюдо | E39: Сок фруктовый №707 | F39: 180 | G39: 0.9 | H39: 0.2 | I39: 17.7 | J39: 80.3 | K39: 707
D40: итого | F40: =SUM(F38:F39) -> 300 | G40: =SUM(G38:G39) -> 1.4 | H40: =SUM(H38:H39) -> 0.7 | I40: =SUM(I38:I39) -> 29.1 | J40: =SUM(J38:J39) -> 135 | L40: =SUM(L38:L39) -> 0
A41: =A30 -> 1 | B41: =B30 -> 3 | C41: Итого за день: | F41: =F37+F40 -> 850 | G41: =G37+G40 -> 32.3 | H41: =H37+H40 -> 31.7 | I41: =I37+I40 -> 103.3 | J41: =J37+J40 -> 792.4 | L41: =L37+L40 -> 105.71
A42: 1 | B42: 4 | C42: Завтрак | D42: гор.блюдо | E42: Каша вязкая молочная кукурузная | F42: 200 | G42: 5.6 | H42: 10.6 | I42: 40.7 | J42: 223 | K42: 118
D43: закуска | E43: Сырники творожные с джемом | F43: 90 | G43: 14.5 | H43: 13.8 | I43: 47.1 | J43: 370 | K43: 291
D44: гор.напиток | E44: Чай с сахаром | F44: 200/15 | G44: 0.1 | H44: 0 | I44: 17.3 | J44: 59.3 | K44: 376
D45: хлеб | E45: Хлеб пшеничный | F45: 40 | G45: 3 | H45: 0.2 | I45: 19.5 | J45: 91.9 | K45: ТТК № 6 | L45: 105.71
D49: итого | F49: 515 | G49: =SUM(G42:G48) -> 23.2 | H49: =SUM(H42:H48) -> 24.6 | I49: =SUM(I42:I48) -> 124.6 | J49: =SUM(J42:J48) -> 744.2 | L49: =SUM(L42:L48) -> 105.71
A50: =A42 -> 1 | B50: =B42 -> 4 | C50: Полдник | D50: закуска | E50: Кондитерские изделия (печенье, вафли) | F50: 20 | G50: 1.6 | H50: 2 | I50: 14.4 | J50: 80.8
D51: 1 блюдо | E51: Фрукты свежие(яблоко) | F51: 100 | G51: 0.4 | H51: 0.4 | I51: 9.5 | J51: 45.6 | K51: 338
D52: 2 блюдо | E52: Чай с сахаром и лимоном | F52: 180 | G52: 0.2 | H52: 0 | I52: 13.5 | J52: 55.4 | K52: 377
D53: гарнир
D54: напиток
D55: хлеб бел.
D56: хлеб черн.
D59: итого | F59: =SUM(F50:F58) -> 300 | G59: =SUM(G50:G58) -> 2.2 | H59: =SUM(H50:H58) -> 2.4 | I59: =SUM(I50:I58) -> 37.4 | J59: =SUM(J50:J58) -> 181.8 | L59: =SUM(L50:L58) -> 0
A60: =A42 -> 1 | B60: =B42 -> 4 | C60: Итого за день: | F60: =F49+F59 -> 815 | G60: =G49+G59 -> 25.4 | H60: =H49+H59 -> 27 | I60: =I49+I59 -> 162 | J60: =J49+J59 -> 926 | L60: =L49+L59 -> 105.71
A61: 1 | B61: 5 | C61: Завтрак | D61: гор.блюдо | E61: Каша из смеси круп (гречневая, овсяная, пшено) вязкая с морковью | F61: 185 | G61: 6.5 | H61: 11.1 | I61: 30.8 | J61: 255 | K61: 202
D62: гор.блюдо | E62: блинчики с джемом в асс. | F62: 120 | G62: 9.3 | H62: 10.9 | I62: 47.8 | J62: 326.7 | K62: 338
D63: гор.напиток | E63: чай с сахаром каркаде | F63: 215 | G63: 0.2 | H63: 0 | I63: 15 | J63: 60.5 | K63: 685
D64: хлеб | E64: Хлеб пшеничный | F64: 40 | G64: 3 | H64: 0.2 | I64: 19.5 | J64: 91.9 | K64: ТТК № 6 | L64: 105.71
D65: фрукты
D67: итого | F67: 560 | G67: =SUM(G61:G66) -> 19 | H67: =SUM(H61:H66) -> 22.2 | I67: =SUM(I61:I66) -> 113.1 | J67: =SUM(J61:J66) -> 734.1 | L67: =SUM(L61:L66) -> 105.71
A68: =A61 -> 1 | B68: =B61 -> 5 | C68: Обед | D68: закуска | E68: Фрукты свежие(яблоко) | F68: 100 | G68: 0.4 | H68: 0.4 | I68: 9.5 | J68: 45.6 | K68: 338
D69: 1 блюдо | E69: Сок фруктовый №707 | F69: 180 | G69: 0.9 | H69: 0.2 | I69: 17.7 | J69: 80.3 | K69: 707
D71: итого | F71: =SUM(F68:F70) -> 280 | G71: =SUM(G68:G70) -> 1.3 | H71: =SUM(H68:H70) -> 0.6 | I71: =SUM(I68:I70) -> 27.2 | J71: =SUM(J68:J70) -> 125.9 | L71: =SUM(L68:L70) -> 0
A72: =A61 -> 1 | B72: =B61 -> 5 | C72: Итого за день: | F72: =F67+F71 -> 840 | G72: =G67+G71 -> 20.3 | H72: =H67+H71 -> 22.8 | I72: =I67+I71 -> 140.3 | J72: =J67+J71 -> 860 | L72: =L67+L71 -> 105.71
A73: 2 | B73: 1 | C73: Завтрак | D73: гор.блюдо | E73: Гуляш из мяса птицы | F73: 90 | G73: 11.1 | H73: 10.4 | I73: 3.2 | J73: 150.3 | K73: 337
E74: Каша вязкая гречневая | F74: 150 | G74: 6.1 | H74: 4.8 | I74: 37.8 | J74: 178.2 | K74: 3.2
D75: гор.напиток | E75: Чай с сахаром | F75: 200/15 | G75: 0.1 | H75: 0 | I75: 17.3 | J75: 59.3 | K75: 376
D76: хлеб | E76: Хлеб пшеничный | F76: 45 | G76: 3.8 | H76: 0.2 | I76: 21.9 | J76: 103.4 | K76: ТТК № 6 | L76: 105.71
D80: итого | F80: 500 | G80: =SUM(G73:G79) -> 21.1 | H80: =SUM(H73:H79) -> 15.4 | I80: =SUM(I73:I79) -> 80.2 | J80: =SUM(J73:J79) -> 491.2 | L80: =SUM(L73:L79) -> 105.71
A81: =A73 -> 2 | B81: =B73 -> 1 | C81: Итого за день: | F81: =F80+#REF! ->  | G81: =G80+#REF! ->  | H81: =H80+#REF! ->  | I81: =I80+#REF! ->  | J81: =J80+#REF! ->  | L81: =L80+#REF! -> 
A82: 2 | B82: 2 | C82: Завтрак | D82: гор.блюдо | E82: Каша овсяная на молоке | F82: 200 | G82: 5 | H82: 10.1 | I82: 30.5 | J82: 260.8 | K82: 175
D83: гор.блюдо | E83: Пицца школьная вар1 | F83: 100 | G83: 12.8 | H83: 22.8 | I83: 65.4 | J83: 368.7 | K83: 288
D84: гор.напиток | E84: Чай с сахаром и лимоном | F84: 200/15/5 | G84: 0.3 | H84: 0 | I84: 15.2 | J84: 60 | K84: 377
D85: хлеб
D86: фрукты
D89: итого | F89: 520 | G89: =SUM(G82:G88) -> 18.1 | H89: =SUM(H82:H88) -> 32.9 | I89: =SUM(I82:I88) -> 111.1 | J89: =SUM(J82:J88) -> 689.5 | L89: =SUM(L82:L88) -> 0
A90: =A82 -> 2 | B90: =B82 -> 2 | C90: Обед | D90: закуска
D91: 1 блюдо
D92: 2 блюдо
D93: гарнир
D94: напиток
D95: хлеб бел.
D96: хлеб черн.
D99: итого | F99: =SUM(F90:F98) -> 0 | G99: =SUM(G90:G98) -> 0 | H99: =SUM(H90:H98) -> 0 | I99: =SUM(I90:I98) -> 0 | J99: =SUM(J90:J98) -> 0 | L99: =SUM(L90:L98) -> 0
A100: =A82 -> 2 | B100: =B82 -> 2 | C100: Итого за день: | F100: =F89+F99 -> 520 | G100: =G89+G99 -> 18.1 | H100: =H89+H99 -> 32.9 | I100: =I89+I99 -> 111.1 | J100: =J89+J99 -> 689.5 | L100: =L89+L99 -> 0
A101: 2 | B101: 3 | C101: Завтрак | D101: гор.блюдо | E101: Оладьи со сгущенным молоком | F101: 150 | G101: 6.5 | H101: 6.8 | I101: 40.2 | J101: 217.2 | K101: 180
D102: гор.блюдо | E102: Каша вязкая гречневая | F102: 200 | G102: 5.6 | H102: 10.6 | I102: 40.7 | J102: 223 | K102: 116
D103: гор.напиток | E103: Чай с сахаром каркаде | F103: 200/15 | G103: 0.2 | H103: 0 | I103: 15 | J103: 60.5 | K103: 685
D104: хлеб | E104: Хлеб пшеничный | F104: 40 | G104: 3 | H104: 0.2 | I104: 19.5 | J104: 91.9 | K104: ТТК №6 | L104: 105.71
D108: итого | F108: 525 | G108: =SUM(G101:G107) -> 15.3 | H108: =SUM(H101:H107) -> 17.6 | I108: =SUM(I101:I107) -> 115.4 | J108: =SUM(J101:J107) -> 592.6 | L108: =SUM(L101:L107) -> 105.71
A109: =A101 -> 2 | B109: =B101 -> 3 | C109: Обед | D109: закуска
D110: 1 блюдо
D111: 2 блюдо
D112: гарнир
D113: напиток
D114: хлеб бел.
D115: хлеб черн.
D118: итого | F118: =SUM(F109:F117) -> 0 | G118: =SUM(G109:G117) -> 0 | H118: =SUM(H109:H117) -> 0 | I118: =SUM(I109:I117) -> 0 | J118: =SUM(J109:J117) -> 0 | L118: =SUM(L109:L117) -> 0
A119: =A101 -> 2 | B119: =B101 -> 3 | C119: Итого за день: | F119: =F108+F118 -> 525 | G119: =G108+G118 -> 15.3 | H119: =H108+H118 -> 17.6 | I119: =I108+I118 -> 115.4 | J119: =J108+J118 -> 592.6 | L119: =L108+L118 -> 105.71
A120: 2 | B120: 4 | C120: Завтрак | D120: гор.блюдо | E120: Каша молочная вязкая с тыквой | F120: 200 | G120: 5 | H120: 10.1 | I120: 30.5 | J120: 260.8 | K120: 120
D121: гор.блюдо | E121: Вриттата с сыром и ветчиной | F121: 100 | G121: 9.6 | H121: 10.3 | I121: 1.6 | J121: 137.6 | K121: 186
D122: гор.напиток | E122: Чай черный с яблоком | F122: 200/15 | G122: 0.3 | H122: 0.1 | I122: 10.2 | J122: 43 | K122: ТТК №547
D123: хлеб | E123: Хлеб пшеничный | F123: 55 | G123: 4.1 | H123: 0.3 | I123: 26.8 | J123: 126.4 | K123: ТТК №6 | L123: 105.71
E124: соус томатный | F124: 30 | G124: 1.1 | H124: 2.5 | I124: 2.5 | J124: 32 | K124: 593
D127: итого | F127: 515 | G127: =SUM(G120:G126) -> 20.1 | H127: =SUM(H120:H126) -> 23.3 | I127: =SUM(I120:I126) -> 71.6 | J127: =SUM(J120:J126) -> 599.8 | L127: =SUM(L120:L126) -> 105.71
A128: =A120 -> 2 | B128: =B120 -> 4 | C128: Обед | D128: закуска
D129: 1 блюдо
D130: 2 блюдо
D131: гарнир
D132: напиток
D133: хлеб бел.
D134: хлеб черн.
D137: итого | F137: =SUM(F128:F136) -> 0 | G137: =SUM(G128:G136) -> 0 | H137: =SUM(H128:H136) -> 0 | I137: =SUM(I128:I136) -> 0 | J137: =SUM(J128:J136) -> 0 | L137: =SUM(L128:L136) -> 0
A138: =A120 -> 2 | B138: =B120 -> 4 | C138: Итого за день: | F138: =F127+F137 -> 515 | G138: =G127+G137 -> 20.1 | H138: =H127+H137 -> 23.3 | I138: =I127+I137 -> 71.6 | J138: =J127+J137 -> 599.8 | L138: =L127+L137 -> 105.71
A139: 2 | B139: 5 | C139: Завтрак | D139: гор.блюдо | E139: Каша молочная манная жидкая | F139: 200 | G139: 5.5 | H139: 7.2 | I139: 33.6 | J139: 243 | K139: 311
D140: гор.блюдо | E140: Запеканка из творога | F140: 120 | G140: 12.7 | H140: 6 | I140: 27.9 | J140: 216.5 | K140: 154
D141: гор.напиток | E141: Чай с сахаром | F141: 200/15/ | G141: 0.1 | H141: 0 | I141: 17.3 | J141: 59.3 | K141: 376
D142: хлеб | E142: Хлеб пшеничный | F142: 55 | G142: 4.1 | H142: 0.3 | I142: 26.8 | J142: 126.4 | L142: 105.71
D146: итого | F146: 535 | G146: =SUM(G139:G145) -> 22.4 | H146: =SUM(H139:H145) -> 13.5 | I146: =SUM(I139:I145) -> 105.6 | J146: =SUM(J139:J145) -> 645.2 | L146: =SUM(L139:L145) -> 105.71
A147: =A139 -> 2 | B147: =B139 -> 5 | C147: Обед | D147: закуска
D148: 1 блюдо
D149: 2 блюдо
D150: гарнир
D151: напиток
D152: хлеб бел.
D153: хлеб черн.
D156: итого | F156: =SUM(F147:F155) -> 0 | G156: =SUM(G147:G155) -> 0 | H156: =SUM(H147:H155) -> 0 | I156: =SUM(I147:I155) -> 0 | J156: =SUM(J147:J155) -> 0 | L156: =SUM(L147:L155) -> 0
A157: =A139 -> 2 | B157: =B139 -> 5 | C157: Итого за день: | F157: =F146+F156 -> 535 | G157: =G146+G156 -> 22.4 | H157: =H146+H156 -> 13.5 | I157: =I146+I156 -> 105.6 | J157: =J146+J156 -> 645.2 | L157: =L146+L156 -> 105.71
C158: Среднее значение за период: | F158: =(F17+F29+F41+F60+F72+F81+F100+F119+F138+F157)/(IF(F17=0,0,1)+IF(F29=0,0,1)+IF(F41=0,0,1)+IF(F60=0,0,1)+IF(F72=0,0,1)+IF(F81=0,0,1)+IF(F100=0,0,1)+IF(F119=0,0,1)+IF(F138=0,0,1)+IF(F157=0,0,1)) ->  | G158: 19.2 | H158: 19.6 | I158: 81 | J158: 549.4 | L158: =(L17+L29+L41+L60+L72+L81+L100+L119+L138+L157)/(IF(L17=0,0,1)+IF(L29=0,0,1)+IF(L41=0,0,1)+IF(L60=0,0,1)+IF(L72=0,0,1)+IF(L81=0,0,1)+IF(L100=0,0,1)+IF(L119=0,0,1)+IF(L138=0,0,1)+IF(L157=0,0,1)) -> 
